bitfinex/quotes_ETHUSD_20241106
["timestamp","ask_amount","ask_price","bid_price","bid_amount"]
[1730897481082,3.78629,2641.2,2640.7,3.78684]
[1730897482295,3.78624,2641.2,2640.6,3.787]
[1730897482498,3.78633,2641.1,2640.6,3.787]
[1730897483592,3.78633,2641.1,2640.7,0.07026303]
[1730897483771,3.78602,2641.3,2640.7,3.85710303]
[1730897484096,4.13923439,2641.2,2640.7,3.85710303]
[1730897484299,3.78616,2641.2,2640.7,3.85710303]
[1730897484596,5.072417,2641.4,2640.9,3.78649]
[1730897484785,0.8253,2641.4,2641.0,3.78635]
[1730897484985,0.8253,2641.4,2641.1,3.78628]
[1730897485156,0.8253,2641.4,2641.1,3.78619]
[1730897485359,0.8032,2641.6,2641.1,3.78618]
[1730897485593,0.8032,2641.6,2641.3,3.78601]
[1730897486171,12.28238,2641.9,2641.4,0.06985786]
[1730897486370,0.35294358,2641.8,2641.6,3.78555]
[1730897486705,3.78482,2642.2,2641.6,3.78555]
[1730897486706,4.58597,2642.1,2641.7,0.06968428]
[1730897486908,4.586,2642.1,2641.7,3.85512428]
[1730897487207,4.586,2642.1,2641.7,0.06968428]
[1730897488508,0.8011,2642.1,2641.7,0.06968428]
[1730897488811,4.58959,2642.3,2641.8,7.57051]
[1730897488973,0.3528842,2642.2,2641.8,7.57051]
[1730897489168,4.58959,2642.3,2641.9,0.06956859]
[1730897489368,0.3528825,2642.2,2641.9,0.06956859]
[1730897489569,4.58959,2642.3,2641.9,0.06956859]
[1730897489770,13.30256519,2642.8,2641.9,0.06956859]
[1730897489771,4.59563,2642.6,2642.0,3.78494]
[1730897490068,0.8114,2642.6,2642.3,3.78454]
[1730897490413,13.30256519,2642.8,2642.4,0.06925093]
[1730897490716,0.8114,2642.9,2642.5,3.78427]
[1730897490717,0.35278597,2642.7,2642.5,3.78427]
[1730897490913,3.78366,2643.0,2642.5,3.7842]
[1730897491122,0.35275681,2642.9,2642.8,3.78386]
[1730897491268,0.8114,2643.4,2643.0,3.78356]
[1730897491476,3.7922,2644.0,2643.2,3.78321]
[1730897491477,3.78261,2643.7,2643.2,3.78321]
[1730897491675,0.35256862,2643.6,2643.3,3.85867597]
[1730897491961,3.78225,2644.0,2643.5,3.78286]
[1730897492105,0.35253216,2643.9,2643.3,3.85174062]
[1730897492448,3.78257,2643.7,2643.2,0.46687752]
[1730897492607,3.78257,2643.7,2643.4,0.06870833]
[1730897492808,3.78257,2643.7,2643.2,0.46687752]
[1730897493155,3.78272,2643.6,2643.5,0.06846115]
[1730897493341,3.78315,2643.3,2642.7,4.26932699]
[1730897493508,4.161675,2643.2,2642.5,3.7842]
[1730897493851,3.78352,2643.1,2642.5,3.7842]
[1730897494055,3.78358,2643.0,2642.3,4.5466]
[1730897494366,3.78387,2642.8,2642.3,4.5466]
[1730897494552,3.78387,2642.8,2642.3,4.54658]
[1730897494755,3.78358,2643.0,2642.3,4.54658]
[1730897494909,4.59649,2643.5,2642.7,4.26932699]
[1730897495109,4.59649,2643.5,2642.9,3.78358]
[1730897495447,0.8136,2643.5,2643.1,3.78333]
[1730897495664,4.58208,2643.8,2643.1,3.78333]
[1730897495867,4.58208,2643.8,2643.2,3.78319]
[1730897496056,4.58208,2643.8,2643.3,3.78314]
[1730897496255,0.7996,2643.8,2643.4,3.78299]
[1730897496576,0.7996,2643.8,2643.5,3.78283]
[1730897496730,10.31103519,2644.1,2643.6,3.78263]
[1730897496925,14.09304519,2644.1,2643.5,3.78278]
[1730897497428,3.78216,2644.0,2643.3,12.21370099]
[1730897497757,3.7825,2643.8,2643.3,3.78301]
[1730897497951,3.7826,2643.7,2643.1,3.78333]
[1730897498156,3.7826,2643.7,2643.1,7.56669]
[1730897498674,3.7826,2643.7,2643.2,0.06853121]
[1730897498873,4.53911,2643.7,2643.2,0.06853121]
[1730897499045,4.53911,2643.7,2643.2,3.85179121]
[1730897500069,5.19155452,2644.0,2643.2,0.06853121]
[1730897500274,5.19155452,2644.0,2643.5,3.78279]
[1730897500430,10.31103519,2644.1,2643.3,4.41338604]
[1730897500639,0.7924,2644.1,2643.7,7.56502]
[1730897500986,3.78166,2644.4,2643.7,7.56502]
[1730897500987,3.78173,2644.3,2643.8,3.78242]
[1730897501171,3.78186,2644.2,2643.8,0.06765086]
[1730897501486,0.756339,2644.3,2643.8,3.78241]
[1730897501639,0.8026,2644.4,2644.1,3.78198]
[1730897501840,0.8026,2644.4,2644.0,3.78214]
[1730897502083,0.8026,2644.7,2644.2,0.06741985]
[1730897502384,4.5866791,2645.0,2644.5,3.78142]
[1730897502686,6.37526253,2645.0,2644.6,0.06693086]
[1730897502846,0.8058891,2645.0,2644.6,0.06693086]
[1730897503041,0.0032891,2645.0,2644.6,0.06693086]
[1730897503243,3.7840091,2645.0,2644.6,0.06693086]
[1730897503590,0.0032891,2645.0,2644.6,3.84821086]
[1730897503947,3.78095,2644.9,2644.6,0.06693086]
[1730897504181,0.37842391,2644.8,2644.5,3.78133]
[1730897504385,0.0032891,2645.0,2644.5,3.78134]
[1730897504547,0.0032891,2645.0,2644.6,0.06669014]
[1730897505059,0.0032891,2645.0,2644.7,3.78105]
[1730897505589,0.0032891,2645.0,2644.8,0.06657126]
[1730897505770,0.0032891,2645.0,2644.7,7.5621]
[1730897506089,0.0032891,2645.0,2644.9,3.78086]
[1730897506579,0.0032891,2645.0,2644.9,3.84737355]
[1730897507283,0.0032891,2645.0,2644.9,0.06651355]
[1730897507649,0.0032891,2645.0,2644.8,3.78099]
[1730897507848,0.0032891,2645.0,2644.9,4.75464254]
[1730897508091,0.0032891,2645.0,2644.9,5.22903573]
[1730897508387,4.57405,2646.5,2645.9,3.7794]
[1730897508542,4.57405,2646.5,2645.7,3.77966]
[1730897508543,3.77887,2646.3,2645.7,3.77963]
[1730897508748,3.77913,2646.2,2646.0,0.0656968]
[1730897508946,3.77914,2646.1,2645.6,3.0]
[1730897509485,0.7954,2646.5,2645.4,0.782]
[1730897509486,3.77944,2645.9,2645.4,0.782]
[1730897509693,4.56329,2645.8,2645.1,3.78044]
[1730897509989,4.56328,2645.8,2645.1,3.78044]
[1730897510166,3.77987,2645.6,2645.1,7.56093]
[1730897510483,4.56328,2645.8,2645.1,3.78044]
[1730897510695,3.77972,2645.7,2645.1,3.78044]
[1730897511265,4.56328,2645.8,2645.2,3.7804]
[1730897511561,3.77973,2645.7,2645.1,7.56092]
[1730897512067,3.7794,2646.0,2645.4,3.78005]
[1730897512268,3.77936,2646.0,2645.4,3.78005]
[1730897512991,3.77936,2646.0,2645.3,4.26932699]
[1730897513203,3.77936,2646.0,2645.3,3.7802]
[1730897513204,3.77944,2645.9,2645.3,3.7802]
[1730897513401,3.77944,2645.9,2645.4,0.06508703]
[1730897513772,3.77936,2646.0,2645.4,3.78013]
[1730897514106,3.77943,2645.9,2645.5,0.06502934]
[1730897514304,3.77974,2645.7,2645.5,0.06502934]
[1730897514896,3.77974,2645.7,2645.6,0.06495448]
[1730897515304,3.77991,2645.6,2645.1,3.78057]
[1730897515506,3.77974,2645.7,2645.1,7.56104]
[1730897515666,3.77974,2645.7,2645.2,0.06518524]
[1730897515866,3.77964,2645.8,2645.3,3.78027]
[1730897516084,3.77964,2645.8,2645.3,3.84539411]
[1730897516405,4.59743,2645.9,2645.3,4.98277352]
[1730897516559,8.37697,2645.9,2645.3,8.76296352]
[1730897516764,4.59743,2645.9,2645.4,3.78013]
[1730897516982,4.59743,2645.9,2645.5,0.06500873]
[1730897517657,4.59743,2645.9,2645.5,3.84499873]
[1730897518816,4.59743,2645.9,2645.5,0.06500873]
[1730897519167,1.655567,2645.9,2645.5,0.06500873]
[1730897519469,3.77957,2645.8,2645.3,8.3133]
[1730897519697,3.77974,2645.7,2645.3,0.7529]
[1730897519900,3.77971,2645.7,2645.4,0.06507329]
[1730897520086,3.77971,2645.7,2645.2,3.78041]
[1730897520267,3.77993,2645.6,2645.5,0.0650156]
[1730897520467,3.77993,2645.6,2645.1,3.78044]
[1730897520804,4.59743,2645.9,2645.1,3.78043]
[1730897520992,3.77972,2645.7,2645.2,3.78037]
[1730897521188,7.55954,2645.7,2645.3,0.06513441]
[1730897521508,3.77972,2645.7,2645.3,0.06513441]
[1730897521808,3.77966,2645.8,2645.3,0.06513441]
[1730897522108,3.77966,2645.8,2645.2,3.78035]
[1730897522109,3.7798,2645.7,2645.2,3.78035]
[1730897522478,3.77992,2645.6,2645.1,3.78056]
[1730897522661,7.55987,2645.6,2645.4,0.06515918]
[1730897522865,7.55987,2645.6,2645.1,3.78056]
[1730897523105,5.292047,2645.6,2645.5,0.06512211]
[1730897523406,3.78,2645.5,2645.0,3.78065]
[1730897523799,0.7562,2645.6,2645.2,3.7803]
[1730897524117,9.51863519,2646.1,2645.2,3.7803]
[1730897524118,10.34923519,2646.1,2645.3,0.89356093]
[1730897524322,10.34923519,2646.1,2645.8,3.77956]
[1730897524668,14.12840519,2646.1,2645.9,0.06273202]
[1730897525069,14.12840519,2646.1,2645.7,3.7797]
[1730897525264,14.12840519,2646.1,2646.0,0.06267436]
[1730897525605,3.77902,2646.2,2645.8,0.8245]
[1730897525831,3.77902,2646.2,2645.9,0.06268736]
[1730897526127,3.77881,2646.4,2645.9,4.6866641]
[1730897526491,7.55764,2646.4,2645.9,4.6866641]
[1730897526694,3.77881,2646.4,2645.9,4.6866641]
[1730897527114,3.77881,2646.4,2645.9,8.4660141]
[1730897527308,3.77876,2646.4,2645.9,0.9073241]
[1730897527519,4.55761,2646.5,2646.0,0.54198939]
[1730897527725,8.3363,2646.5,2646.0,4.32125939]
[1730897528033,4.55759,2646.5,2646.1,0.06257203]
[1730897528335,0.7928,2647.1,2646.6,3.77838]
[1730897528533,3.77807,2646.9,2646.4,0.7651]
[1730897528685,7.55668,2646.7,2646.1,8.87414699]
[1730897528882,3.77843,2646.6,2646.1,4.60482]
[1730897529117,4.55123,2646.6,2645.9,3.77936]
[1730897529321,5.006353,2646.6,2645.9,3.77936]
[1730897529525,3.77879,2646.4,2645.8,0.8258]
[1730897529840,3.77898,2646.3,2645.8,4.60535]
[1730897530142,3.77898,2646.3,2645.8,0.8258]
[1730897531031,3.77923,2646.1,2645.8,0.8258]
[1730897531424,4.55061,2646.0,2645.6,3.0]
[1730897531728,4.55061,2646.0,2645.5,4.5571]
[1730897531887,4.55035,2646.2,2645.5,4.5571]
[1730897532086,0.7713,2646.2,2645.8,3.77951]
[1730897532287,4.559,2646.4,2645.8,3.77944]
[1730897532487,4.559,2646.4,2645.5,5.50223699]
[1730897532488,3.77939,2646.0,2645.5,5.50223699]
[1730897532687,3.77939,2646.0,2645.5,5.04652699]
[1730897532915,3.77943,2645.9,2645.5,5.04652699]
[1730897533424,3.77939,2646.0,2645.3,4.56688]
[1730897533590,0.7585,2646.2,2645.3,4.56688]
[1730897533790,3.77958,2645.8,2645.3,4.56688]
[1730897534094,3.77958,2645.8,2645.3,4.6424737]
[1730897534293,3.77973,2645.7,2645.3,0.7867]
[1730897534516,3.77986,2645.6,2645.3,0.7867]
[1730897534834,0.50434623,2646.1,2645.3,0.07559729]
[1730897535047,3.77933,2646.0,2645.4,3.78002]
[1730897535328,3.77957,2645.8,2645.3,3.85587729]
[1730897535887,3.77943,2645.9,2645.4,3.78014]
[1730897536427,3.77928,2646.1,2645.3,3.78028]
[1730897536633,4.66156423,2646.1,2645.3,3.78028]
[1730897536828,3.77935,2646.0,2645.5,3.77997]
[1730897537029,4.66143423,2646.1,2645.6,3.77985]
[1730897537237,3.77915,2646.1,2645.6,8.31362]
[1730897537415,0.7585,2646.2,2645.7,0.831362]
[1730897537619,4.53752,2646.2,2645.7,4.611052]
[1730897537918,0.7585,2646.2,2645.4,3.78005]
[1730897538119,3.77951,2645.9,2645.4,3.78005]
[1730897538323,3.77963,2645.8,2645.2,8.86806699]
[1730897538523,3.78,2645.5,2645.0,3.7719]
[1730897538910,3.78037,2645.3,2644.8,0.7719]
[1730897539132,4.5446,2645.1,2644.5,4.55319]
[1730897539295,3.78095,2644.9,2644.5,0.7719]
[1730897539498,3.78095,2644.9,2644.3,0.39357497]
[1730897539499,3.78139,2644.6,2644.3,0.39357497]
[1730897539730,3.78139,2644.6,2644.2,0.805]
[1730897539731,3.78154,2644.5,2644.2,0.805]
[1730897540029,3.78161,2644.4,2644.2,1.3124327]
[1730897540397,7.56281,2644.6,2644.2,0.805]
[1730897540644,3.781,2644.8,2643.9,0.8014]
[1730897540857,3.7819,2644.2,2644.0,0.39360792]
[1730897541552,3.78182,2644.3,2644.0,0.39360792]
[1730897542237,7.56364,2644.3,2644.0,0.39360792]
[1730897542609,3.78188,2644.2,2644.0,0.39360792]
[1730897543425,3.78188,2644.2,2644.1,0.06355435]
[1730897543610,3.78188,2644.2,2643.9,0.8014]
[1730897543815,3.78188,2644.2,2643.9,1.6867167]
[1730897544148,3.78182,2644.3,2644.0,0.0636121]
[1730897544357,8.31383,2644.7,2644.1,3.78193]
[1730897544510,3.78131,2644.6,2644.1,3.8575618]
[1730897544714,3.78131,2644.6,2644.2,0.0641015]
[1730897544715,3.78129,2644.6,2644.2,0.0641015]
[1730897545434,3.78157,2644.4,2644.2,0.0641015]
[1730897545644,3.78129,2644.6,2644.2,0.0626533]
[1730897545953,7.56268,2644.6,2644.2,0.0626533]
[1730897546159,3.78129,2644.6,2644.2,0.0626533]
[1730897546742,3.78144,2644.5,2644.2,0.0626533]
[1730897546961,3.78129,2644.6,2644.2,0.0626533]
[1730897547157,7.56266,2644.6,2644.2,0.0626533]
[1730897547851,3.78129,2644.6,2644.2,0.0626533]
[1730897548474,3.78145,2644.5,2644.2,0.0626533]
[1730897549867,3.78168,2644.4,2644.2,0.0626533]
[1730897550231,3.78168,2644.4,2643.9,7.97718519]
[1730897550232,7.56336,2644.4,2643.9,7.97718519]
[1730897550650,3.78178,2644.3,2644.0,0.06466371]
[1730897551927,3.782,2644.1,2644.0,0.06466371]
[1730897552178,4.5968,2644.1,2644.0,0.06466371]
[1730897552397,4.5968,2644.1,2643.0,0.05675145]
[1730897552398,3.783,2643.4,2643.0,0.81435145]
[1730897552662,3.78315,2643.3,2643.0,0.81435145]
[1730897553026,4.59771,2643.5,2643.0,0.81435145]
[1730897553226,3.78301,2643.4,2643.0,0.81435145]
[1730897553426,3.78301,2643.4,2643.1,0.06303994]
[1730897553665,4.59771,2643.5,2643.1,0.06303994]
[1730897553960,3.78265,2643.7,2643.2,3.78324]
[1730897554159,0.7812,2643.8,2643.2,0.07565659]
[1730897554462,0.7812,2643.8,2643.4,3.78299]
[1730897554969,3.78237,2643.9,2643.5,0.06311844]
[1730897555834,3.78226,2644.0,2643.5,3.84594844]
[1730897556074,3.78214,2644.0,2643.5,3.92159578]
[1730897556442,3.7821,2644.1,2643.5,3.92159578]
[1730897556443,3.78201,2644.1,2643.6,4.57585]
[1730897556778,3.78223,2644.0,2643.7,0.0630029]
[1730897556933,3.78201,2644.1,2643.7,0.0630029]
[1730897557136,7.59145,2644.5,2643.9,3.78228]
[1730897557137,3.78165,2644.4,2643.9,3.78228]
[1730897557333,3.78165,2644.4,2643.9,3.85791592]
[1730897557571,3.78144,2644.5,2644.0,3.84496963]
[1730897557744,7.56295,2644.5,2644.0,3.84496963]
[1730897558274,3.78159,2644.4,2644.0,0.06282963]
[1730897559080,14.06192519,2644.6,2644.0,3.84496963]
[1730897559299,4.54329,2644.6,2644.1,3.78193]
[1730897559444,3.78129,2644.6,2644.2,0.8054]
[1730897559643,3.78129,2644.6,2644.3,0.06265639]
[1730897559842,7.56266,2644.6,2644.2,0.8054]
[1730897560076,3.78129,2644.6,2644.3,0.06265639]
[1730897560468,3.78135,2644.6,2644.2,0.8054]
[1730897560771,7.56272,2644.6,2644.4,0.06259866]
[1730897560964,7.56272,2644.6,2644.2,0.8054]
[1730897560965,3.78135,2644.6,2644.3,0.06265639]
[1730897561175,4.537595,2644.6,2644.5,0.06254093]
[1730897561488,3.78087,2644.9,2644.5,0.06254093]
[1730897561780,0.8135,2645.0,2644.1,3.78191]
[1730897561998,3.78103,2644.8,2644.1,3.78191]
[1730897562143,3.7813,2644.6,2644.2,0.06271414]
[1730897562703,7.56214,2644.8,2644.2,3.84446414]
[1730897562977,3.78103,2644.8,2644.3,3.78164]
[1730897563180,3.78107,2644.8,2644.3,3.78164]
[1730897563418,3.78107,2644.8,2644.4,0.06259866]
[1730897563786,3.78117,2644.7,2644.4,0.06259866]
[1730897564806,3.78095,2644.9,2644.4,0.06259866]
[1730897565007,5.57034052,2644.9,2644.4,3.84415866]
[1730897565216,3.78095,2644.9,2644.4,3.84415866]
[1730897565713,3.78073,2645.0,2644.6,3.78126]
[1730897566114,13.29929519,2645.1,2644.7,0.0620057]
[1730897566315,3.78075,2645.0,2644.7,0.0620057]
[1730897566516,3.78075,2645.0,2644.4,3.78156]
[1730897566716,3.78102,2644.8,2644.3,4.54671]
[1730897566878,3.78102,2644.8,2644.4,3.78154]
[1730897567722,3.78089,2644.9,2644.4,7.563]
[1730897568085,3.78072,2645.0,2644.5,3.78136]
[1730897568286,3.78072,2645.0,2644.4,4.61426]
[1730897568287,3.78088,2644.9,2644.4,8.39575]
[1730897569419,3.78088,2644.9,2644.4,4.61426]
[1730897569611,3.78088,2644.9,2644.5,3.78143]
[1730897569812,3.78072,2645.0,2644.5,3.78143]
[1730897570028,7.56157,2645.0,2644.5,3.78143]
[1730897570189,3.78088,2644.9,2644.4,4.61426]
[1730897570506,0.8083,2645.3,2644.6,3.78126]
[1730897570507,3.7807,2645.1,2644.6,3.78126]
[1730897571596,3.78054,2645.2,2644.6,3.78126]
[1730897571802,3.78059,2645.1,2644.6,3.78126]
[1730897571999,3.78059,2645.1,2644.5,4.319336]
[1730897572229,3.781,2644.8,2644.4,3.78155]
[1730897572586,3.78065,2645.1,2644.6,3.78122]
[1730897573425,7.56131,2645.1,2644.7,0.06190253]
[1730897574119,3.78075,2645.0,2644.7,0.06190253]
[1730897574624,3.781,2644.8,2644.4,3.78147]
[1730897574827,3.781,2644.8,2644.3,0.765]
[1730897575012,3.78116,2644.7,2644.3,0.765]
[1730897575329,3.781,2644.8,2644.3,4.5467]
[1730897576316,3.78085,2645.0,2644.4,3.78157]
[1730897577118,3.78101,2644.8,2644.4,3.78157]
[1730897577427,3.78073,2645.0,2644.5,0.0756203]
[1730897577632,3.78068,2645.1,2644.6,7.56243]
[1730897577931,3.78068,2645.1,2644.8,0.7574]
[1730897578925,3.78045,2645.2,2644.8,0.7574]
[1730897579301,3.78038,2645.3,2644.8,4.5383]
[1730897579639,7.56078,2645.3,2644.8,4.5383]
[1730897580535,3.78045,2645.2,2644.8,1.589342]
[1730897581401,3.7803,2645.3,2644.9,3.78084]
[1730897581606,0.35251272,2645.2,2644.9,3.78084]
[1730897581792,3.7803,2645.3,2644.9,3.78084]
[1730897582442,0.35261365,2645.2,2645.1,3.78057]
[1730897582636,3.7798,2645.7,2645.3,0.7571]
[1730897582835,0.35256894,2645.6,2645.3,0.7571]
[1730897583068,0.35256894,2645.5,2645.3,0.7571]
[1730897583284,3.77987,2645.6,2645.3,0.7571]
[1730897583572,0.35268268,2645.5,2645.3,0.7571]
[1730897583737,0.35268268,2645.4,2645.3,0.7571]
[1730897584158,3.7798,2645.7,2645.3,0.7571]
[1730897584375,0.35262537,2645.6,2645.3,0.7571]
[1730897584575,0.35262537,2645.5,2645.3,0.7571]
[1730897584776,0.35262537,2645.4,2645.3,0.7571]
[1730897585489,3.7798,2645.7,2645.3,4.991139]
[1730897585684,0.35267079,2645.6,2645.3,4.53738]
[1730897585897,3.77953,2645.9,2645.3,4.53738]
[1730897586107,0.35264487,2645.8,2645.5,3.77997]
[1730897586301,3.77953,2645.9,2645.5,3.77997]
[1730897586602,0.35253777,2645.8,2645.5,3.77997]
[1730897586756,0.35253777,2645.7,2645.5,4.6192623]
[1730897586957,3.77953,2645.9,2645.5,4.6192623]
[1730897587157,0.35253571,2645.8,2645.7,3.77958]
[1730897587376,4.58285,2646.5,2645.8,3.77944]
[1730897587672,4.6950013,2646.4,2645.9,3.85491886]
[1730897587887,0.35238127,2646.3,2645.9,3.85491886]
[1730897588074,3.77881,2646.4,2645.9,3.85491886]
[1730897588413,8.36154,2646.5,2646.0,3.83986204]
[1730897588621,0.35217351,2646.4,2646.0,3.83986204]
[1730897588788,4.58285,2646.5,2646.0,3.83986204]
[1730897589113,0.3521734,2646.4,2646.0,3.83986204]
[1730897589309,3.77872,2646.4,2646.0,3.83986204]
[1730897589644,0.8173,2647.0,2646.3,3.77883]
[1730897589824,0.35197079,2646.9,2646.3,3.77883]
[1730897590020,0.8173,2647.0,2646.4,0.06012452]
[1730897590169,0.8173,2647.0,2646.5,3.77857]
[1730897590370,3.77738,2647.4,2646.6,4.54901]
[1730897590371,4.59466,2647.4,2646.6,4.54901]
[1730897590586,0.35166929,2647.3,2646.6,4.60892305]
[1730897590914,0.35166929,2647.2,2646.6,0.83051305]
[1730897591275,3.7775,2647.3,2646.6,0.83051305]
[1730897591478,3.7775,2647.3,2646.6,4.60891305]
[1730897592504,3.77755,2647.3,2646.6,0.83051305]
[1730897593005,3.77755,2647.3,2646.6,4.60893305]
[1730897593175,3.77755,2647.3,2646.6,8.38729305]
[1730897593388,0.8173,2647.4,2646.6,5.44760236]
[1730897593594,0.1291971,2647.7,2646.8,0.7929]
[1730897593837,0.1291971,2647.7,2647.1,3.77762]
[1730897594231,0.1291971,2647.7,2647.3,0.7929]
[1730897594422,0.1291971,2647.7,2647.3,4.57033]
[1730897594632,0.1291971,2647.7,2647.4,0.0592014]
[1730897594933,0.1291971,2647.7,2647.4,3.8364714]
[1730897595335,0.1291971,2647.7,2647.5,4.65456688]
[1730897595534,0.1291971,2647.7,2647.5,4.71371068]
[1730897595695,0.1291971,2647.7,2647.6,3.777]
[1730897595899,0.1291971,2647.7,2647.6,3.83608621]
[1730897596432,0.1291971,2647.7,2647.6,6.83608621]
[1730897596595,0.1291971,2647.7,2647.6,7.67481552]
[1730897597631,0.1291971,2647.7,2647.6,8.46781552]
[1730897599247,0.1291971,2647.7,2647.6,0.05908621]
[1730897599534,3.77709,2647.6,2646.9,3.77791]
[1730897599690,3.7773,2647.4,2646.9,3.77791]
[1730897599894,0.7683,2647.6,2646.7,4.58769253]
[1730897599895,3.77724,2647.5,2646.7,0.80947253]
[1730897600337,3.77757,2647.3,2646.7,4.58775253]
[1730897600640,3.77758,2647.2,2646.7,0.80947253]
[1730897601022,4.20331371,2647.5,2646.7,4.58773253]
[1730897601225,3.77743,2647.3,2646.7,4.58773253]
[1730897601547,3.77773,2647.1,2646.7,0.80947253]
[1730897602538,3.77786,2647.0,2646.7,0.80947253]
[1730897603145,3.77773,2647.1,2646.7,0.80947253]
[1730897603319,3.77793,2647.0,2646.8,0.05656084]
[1730897603519,3.77793,2647.0,2646.5,3.0]
[1730897603721,3.77793,2647.0,2646.9,0.05650321]
[1730897604051,3.77793,2647.0,2646.5,3.77856]
[1730897604361,3.77793,2647.0,2646.3,4.57066]
[1730897604563,3.77811,2646.9,2646.6,0.0566761]
[1730897604720,3.77811,2646.9,2646.4,3.0]
[1730897604919,3.77823,2646.8,2646.7,0.05661847]
[1730897605134,3.77836,2646.7,2646.4,0.07556556]
[1730897605424,3.77785,2647.1,2646.5,3.77857]
[1730897605623,3.7776,2647.2,2646.6,0.07556525]
[1730897605827,3.7776,2647.2,2646.7,3.77819]
[1730897606047,3.7776,2647.2,2646.7,3.83480847]
[1730897606953,3.77786,2647.0,2646.7,0.05661847]
[1730897607321,3.77773,2647.1,2646.7,0.05661847]
[1730897609574,3.77789,2647.0,2646.7,0.05661847]
[1730897609735,3.77773,2647.1,2646.7,0.05661847]
[1730897610383,3.77788,2647.0,2646.7,0.05661847]
[1730897610668,3.77753,2647.3,2646.7,0.05661847]
[1730897610877,3.77758,2647.2,2646.7,3.83480847]
[1730897611075,3.77758,2647.2,2646.7,4.63523701]
[1730897611378,3.77758,2647.2,2646.8,0.7724]
[1730897611535,3.77758,2647.2,2646.8,0.8293828]
[1730897611872,3.77751,2647.3,2646.8,4.6074428]
[1730897612229,3.7772,2647.5,2646.9,3.77792]
[1730897612430,3.9061271,2647.7,2647.0,0.53627799]
[1730897612634,0.1291971,2647.7,2647.0,0.51759783]
[1730897612866,3.77729,2647.4,2647.0,0.51759783]
[1730897613073,3.77729,2647.4,2647.1,0.42954878]
[1730897613240,3.77729,2647.4,2647.2,0.05675232]
[1730897613452,3.77743,2647.3,2647.2,0.05675232]
[1730897613787,3.77785,2647.1,2646.5,8.37676]
[1730897613959,3.77783,2647.1,2646.5,8.37674]
[1730897614359,3.77783,2647.1,2646.6,3.77841]
[1730897614572,3.77783,2647.1,2646.6,4.616078]
[1730897614884,3.77788,2647.0,2646.6,0.837668]
[1730897615179,3.77788,2647.0,2646.5,4.59827]
[1730897615380,3.77788,2647.0,2646.5,8.37677]
[1730897616758,3.77811,2646.9,2646.5,0.8198]
[1730897616962,3.77822,2646.8,2646.5,0.8198]
[1730897617148,3.77815,2646.8,2646.5,0.8198]
[1730897617345,7.55641,2646.8,2646.5,0.8198]
[1730897617678,3.77815,2646.8,2646.5,0.8198]
[1730897617873,7.55638,2646.8,2646.5,0.8198]
[1730897618075,3.77815,2646.8,2646.5,0.8198]
[1730897618390,3.77801,2646.9,2646.6,0.05715642]
[1730897619050,3.77767,2647.2,2646.6,0.05715642]
[1730897619244,3.77786,2647.0,2646.6,0.90057706]
[1730897621082,3.77804,2646.9,2646.6,0.90057706]
[1730897621251,3.77804,2646.9,2646.6,0.05715642]
[1730897622153,3.77828,2646.8,2646.6,0.05715642]
[1730897622774,3.77801,2646.9,2646.6,0.05715642]
[1730897623292,7.55594,2647.0,2646.6,0.05715642]
[1730897623499,3.77778,2647.1,2646.6,4.6864556]
[1730897623667,7.55563,2647.1,2646.6,3.83548642]
[1730897623872,3.77792,2647.0,2646.6,3.83548642]
[1730897624083,3.77815,2646.8,2646.6,0.05715642]
[1730897624286,7.55641,2646.8,2646.3,3.77873]
[1730897624491,0.7962,2646.8,2646.4,0.05733006]
[1730897624702,3.77828,2646.7,2645.8,0.3930235]
[1730897624861,4.235878,2646.6,2645.8,0.3930235]
[1730897625196,3.77902,2646.2,2645.8,0.3930235]
[1730897625396,3.77872,2646.4,2645.9,3.82944772]
[1730897626273,3.77872,2646.4,2645.9,0.05015772]
[1730897626457,3.77894,2646.3,2645.9,0.05015772]
[1730897626791,7.5585,2646.1,2645.7,3.8276]
[1730897626995,7.5585,2646.1,2646.0,0.05010005]
[1730897627295,3.77925,2646.1,2645.7,0.8276]
[1730897627456,4.55715,2646.3,2646.0,0.05010005]
[1730897627662,4.55715,2646.3,2645.7,0.90318458]
[1730897627872,3.77895,2646.3,2645.7,5.19038605]
[1730897628199,3.779,2646.2,2645.8,0.05021539]
[1730897628362,3.77895,2646.3,2645.8,3.77948]
[1730897628710,3.7788,2646.4,2645.9,4.70850954]
[1730897628995,3.7788,2646.4,2645.9,4.65835182]
[1730897629161,3.7788,2646.4,2646.0,0.05010005]
[1730897629561,3.77871,2646.4,2646.0,0.05010005]
[1730897629759,3.77871,2646.4,2646.0,0.52096724]
[1730897630673,3.77871,2646.4,2646.0,0.05010005]
[1730897630875,3.77871,2646.4,2645.8,3.77953]
[1730897631060,3.77871,2646.4,2645.9,3.77942]
[1730897631262,3.77871,2646.4,2645.9,3.82957772]
[1730897632782,3.77871,2646.4,2645.9,7.60892772]
[1730897632980,3.77834,2646.7,2646.1,4.58135]
[1730897633279,4.5378,2646.9,2646.1,0.8023]
[1730897633280,3.77872,2646.4,2646.1,0.8023]
[1730897633512,3.77872,2646.4,2646.2,0.04998473]
[1730897633882,3.77886,2646.3,2646.2,0.04998473]
[1730897634082,3.77924,2646.1,2645.9,0.8023]
[1730897634318,3.77924,2646.1,2645.6,3.77984]
[1730897634518,3.77924,2646.1,2646.0,0.05026793]
[1730897634842,3.77924,2646.1,2645.7,0.50060785]
[1730897635050,3.77924,2646.1,2646.0,0.05027479]
[1730897635232,3.77924,2646.1,2645.7,0.50060785]
[1730897635404,3.77924,2646.1,2646.0,0.05044955]
[1730897635610,3.77924,2646.1,2645.7,0.50060785]
[1730897635836,3.77924,2646.1,2646.0,0.05044955]
[1730897636035,3.77932,2646.0,2645.5,5.0062285]
[1730897636244,3.77944,2645.9,2645.5,2.11053559]
[1730897636705,3.77944,2645.9,2645.5,5.89052559]
[1730897637708,3.77944,2645.9,2645.5,2.11053559]